Workbook

Sheet Index
B1: DCF Valuation
B2: Sheet index
B4: # | C4: Worksheet
B5: 1 | C5: 1.Input -->
B6: =B5+1 -> 2 | C6: P&L assumptions
B7: =B6+1 -> 3 | C7: BS assumptions
B8: 4 | C8: 2.Output -->
B9: 5 | C9: P&L
B10: 6 | C10: BS
B11: 7 | C11: Cash Flow
B12: 8 | C12: DCF valuation
B13: 9 | C13: 3.Charts -->
B14: 10 | C14: Revenue&Ebitda
B15: 11 | C15: Cash flows
B16: 12 | C16: Ebitda bridge
B17: 13 | C17: Working capital
B18: 14 | C18: DCF results
B19: 15 | C19: 4. Sources -->
B20: 16 | C20: P&L source
B21: 17 | C21: BS source

Sheet 1.Input -->
B11: 1.Input -->

Sheet P&L assumptions
B1: P&L assumptions
G2: Case scenarios:
G3: Case 1: Optimistic case
G4: Case 2: Base case
B5: Selected case | C5: 1 | G5: Case 3: Worst case
B8: $ in thousands | C8: FY11 Actual | D8: FY12 Actual | E8: FY13 Actual | G8: FY14 Forecast | H8: FY15 Forecast | I8: FY16 Forecast | J8: FY17 Forecast | K8: FY18 Forecast
B9: Revenues | C9: ='P&L source'!D4 -> 177203 | D9: ='P&L source'!E4 -> 188618 | E9: ='P&L source'!F4 -> 208366 | G9: =+E9*(1+G10) -> 229202.6 | H9: =+G9*(1+H10) -> 252122.86 | I9: =+H9*(1+I10) -> 277335.146 | J9: 305068.6606 | K9: 335575.5267
B10: y-o-y growth % | C10: 0 | D10: =D9/C9-1 -> 0.0644176453 | E10: =E9/D9-1 -> 0.1046983851 | G10: =+CHOOSE($C$5,G11,G12,G13) -> 0.1 | H10: =+CHOOSE($C$5,H11,H12,H13) -> 0.1 | I10: 0.1 | J10: 0.1 | K10: 0.1
B11: Case 1 | G11: 0.1 | H11: 0.1 | I11: 0.1 | J11: 0.1 | K11: 0.1
B12: Case 2 | G12: 0.08 | H12: 0.08 | I12: 0.08 | J12: 0.08 | K12: 0.08
B13: Case 3 | G13: 0.04 | H13: 0.04 | I13: 0.04 | J13: 0.04 | K13: 0.04
B15: Other revenues | C15: ='P&L source'!D5 -> 3520 | D15: ='P&L source'!E5 -> 2416 | E15: ='P&L source'!F5 -> 2585 | G15: =+E15*(1+G16) -> 2585 | H15: =+G15*(1+H16) -> 2585 | I15: =+H15*(1+I16) -> 2585 | J15: =+I15*(1+J16) -> 2585 | K15: =+J15*(1+K16) -> 2585
B16: y-o-y growth % | C16: 0 | D16: =D15/C15-1 -> -0.3136363636 | E16: =E15/D15-1 -> 0.06995033113 | G16: =+CHOOSE($C$5,G17,G18,G19) -> 0 | H16: =+CHOOSE($C$5,H17,H18,H19) -> 0 | I16: 0 | J16: 0 | K16: 0
B17: Case 1 | G17: 0 | H17: 0 | I17: 0 | J17: 0 | K17: 0
B18: Case 2 | G18: 0 | H18: 0 | I18: 0 | J18: 0 | K18: 0
B19: Case 3 | G19: 0 | H19: 0 | I19: 0 | J19: 0 | K19: 0
B21: Cost of goods sold | C21: ='P&L source'!D8+'P&L source'!D9 -> -142394.3675 | D21: ='P&L source'!E8+'P&L source'!E9 -> -150572.1664 | E21: ='P&L source'!F8+'P&L source'!F9 -> -157523.1184 | G21: =G$9*G22 -> -174193.976 | H21: =H$9*H22 -> -191613.3736 | I21: -210774.711 | J21: -231852.1821 | K21: -255037.4003
B22: % of revenues | C22: =C21/C$9 -> -0.8035663474 | D22: =D21/D$9 -> -0.7982916074 | E22: =E21/E$9 -> -0.7559924288 | G22: =+CHOOSE($C$5,G23,G24,G25) -> -0.76 | H22: =+CHOOSE($C$5,H23,H24,H25) -> -0.76 | I22: -0.76 | J22: -0.76 | K22: -0.76
B23: Case 1 | G23: -0.76 | H23: -0.76 | I23: -0.76 | J23: -0.76 | K23: -0.76
B24: Case 2 | G24: -0.78 | H24: -0.78 | I24: -0.78 | J24: -0.78 | K24: -0.78
B25: Case 3 | G25: -0.8 | H25: -0.8 | I25: -0.8 | J25: -0.8 | K25: -0.8
B27: Operating expenses | C27: ='P&L source'!D10+'P&L source'!D11+'P&L source'!D12 -> -18011.3152 | D27: ='P&L source'!E10+'P&L source'!E11+'P&L source'!E12 -> -19247.8976 | E27: ='P&L source'!F10+'P&L source'!F11+'P&L source'!F12 -> -23867.008 | G27: =G$9*G28 -> -22920.26 | H27: =H$9*H28 -> -25212.286 | I27: -27733.5146 | J27: -30506.86606 | K27: -33557.55267
B28: % of revenues | C28: =C27/C$9 -> -0.1016422702 | D28: =D27/D$9 -> -0.1020469817 | E28: =E27/E$9 -> -0.114543678 | G28: =+CHOOSE($C$5,G29,G30,G31) -> -0.1 | H28: =+CHOOSE($C$5,H29,H30,H31) -> -0.1 | I28: -0.1 | J28: -0.1 | K28: -0.1
B29: Case 1 | G29: -0.1 | H29: -0.1 | I29: -0.1 | J29: -0.1 | K29: -0.1
B30: Case 2 | G30: -0.105 | H30: -0.105 | I30: -0.105 | J30: -0.105 | K30: -0.105
B31: Case 3 | G31: -0.11 | H31: -0.11 | I31: -0.11 | J31: -0.11 | K31: -0.11
B33: D&A | C33: ='P&L source'!D16 -> -2907.8 | D33: ='P&L source'!E16 -> -4649.8 | E33: ='P&L source'!F16 -> -6430.66 | G33: =G$9*G34 -> -4584.052 | H33: =H$9*H34 -> -5042.4572 | I33: -5546.70292 | J33: -6101.373212 | K33: -6711.510533
B34: % of revenues | C34: =C33/C$9 -> -0.01640942873 | D34: =D33/D$9 -> -0.02465194202 | E34: =E33/E$9 -> -0.03086232879 | G34: =+CHOOSE($C$5,G35,G36,G37) -> -0.02 | H34: =+CHOOSE($C$5,H35,H36,H37) -> -0.02 | I34: -0.02 | J34: -0.02 | K34: -0.02
B35: Case 1 | G35: -0.02 | H35: -0.02 | I35: -0.02 | J35: -0.02 | K35: -0.02
B36: Case 2 | G36: -0.025 | H36: -0.025 | I36: -0.025 | J36: -0.025 | K36: -0.025
B37: Case 3 | G37: -0.03 | H37: -0.03 | I37: -0.03 | J37: -0.03 | K37: -0.03
B39: Interest expense | C39: ='P&L source'!D20 -> -1266.3 | D39: ='P&L source'!E20 -> -2190.9 | E39: ='P&L source'!F20 -> -2663.92
B40: y-o-y growth % | C40: - | D40: =D39/C39-1 -> 0.7301587302 | E40: =E39/D39-1 -> 0.2159021407
B41: Case 1
B42: Case 2
B43: Case 3
B45: Extraordinary items | C45: ='P&L source'!D21 -> -317.58 | D45: ='P&L source'!E21 -> -864.3 | E45: ='P&L source'!F21 -> -320.26
B46: % of revenues | C46: =C45/C9 -> -0.001792181848 | D46: =D45/D9 -> -0.004582277407 | E46: =E45/E9 -> -0.001537006997
B47: Case 1
B48: Case 2
B49: Case 3
B51: Taxes | C51: ='P&L source'!D25 -> -3805.776 | D51: ='P&L source'!E25 -> -3050.192 | E51: ='P&L source'!F25 -> -3814.88
B52: % of EBT | C52: ='P&L source'!D25/'P&L source'!D23 -> -0.2404816893 | D52: ='P&L source'!E25/'P&L source'!E23 -> -0.2257906914 | E52: ='P&L source'!F25/'P&L source'!F23 -> -0.1893613443
B53: Case 1
B54: Case 2
B55: Case 3

Sheet BS assumptions
B1: BS assumptions
B4: $ in thousands | C4: FY11 Actual | D4: FY12 Actual | E4: FY13 Actual | G4: FY14 Forecast | H4: FY15 Forecast | I4: FY16 Forecast | J4: FY17 Forecast | K4: FY18 Forecast

Sheet 2.Output-->
B11: 2.Output -->

Sheet P&L
B1: P&L
B3: $ in thousands | C3: FY11 Actual | D3: FY12 Actual | E3: FY13 Actual | G3: FY14 Forecast | H3: FY15 Forecast | I3: FY16 Forecast | J3: FY17 Forecast | K3: FY18 Forecast | M3: Note
B56: 1

Sheet BS
B1: Balance Sheet
B3: $ in thousands | C3: FY11 Actual | D3: FY12 Actual | E3: FY13 Actual | G3: FY14 Forecast | H3: FY15 Forecast | I3: FY16 Forecast | J3: FY17 Forecast | K3: FY18 Forecast | M3: Note

Sheet Cash Flow
B1: Cash Flow
B2: .
B3: $ in thousands | D3: FY12 Actual | E3: FY13 Actual | G3: FY14 Forecast | H3: FY15 Forecast | I3: FY16 Forecast | J3: FY17 Forecast | K3: FY18 Forecast | M3: Note

Sheet DCF valuation
B1: DCF Valuation
B4: $ in thousands | C4: FY11 Actual | D4: FY12 Actual | E4: FY13 Actual | G4: FY14 Forecast | H4: FY15 Forecast | I4: FY16 Forecast | J4: FY17 Forecast | K4: FY18 Forecast | M4: Note

Sheet 3.Charts -->
B11: 3.Charts -->

Sheet Revenues&Ebitda
B1: Revenues & EBITDA

Sheet Cash flows
B1: Cash flows

Sheet Ebitda bridge
B1: Ebitda bridge

Sheet Working capital
B1: Working capital

Sheet DCF results
B1: DCF results

Sheet 4.Sources -->
B11: 4.Sources -->

Sheet P&L source
B1: P&L source
B3: USD in thousands | D3: 2011 Act | E3: 2012 Act | F3: 2013 Act
B4: Revenue from sales and services | D4: 177203 | E4: 188618 | F4: 208366
B5: Other revenue | D5: 3520 | E5: 2416 | F5: 2585
B6: Revenue | D6: =D4+D5 -> 180723 | E6: =E4+E5 -> 191034 | F6: =F4+F5 -> 210951
B8: Raw materials | D8: -139903.0395 | E8: -138922.9888 | F8: -150080.4688
B9: Direct costs | D9: -2491.328 | E9: -11649.1776 | F9: -7442.6496
B10: Cost for services | D10: -16389.5936 | E10: -17878.3104 | F10: -22293.312
B11: Lease costs | D11: -290.7264 | E11: -246.1312 | F11: -120.9216
B12: Other operating expenses | D12: -1330.9952 | E12: -1123.456 | F12: -1452.7744
B14: EBITDA | D14: =D6+SUM(D8:D12) -> 20317.31733 | E14: =E6+SUM(E8:E12) -> 21213.936 | F14: =F6+SUM(F8:F12) -> 29560.87357
B16: D&A | D16: -2907.8 | E16: -4649.8 | F16: -6430.66
B18: EBIT | D18: =D14+D16 -> 17409.51733 | E18: =E14+E16 -> 16564.136 | F18: =F14+F16 -> 23130.21357
B20: Financial income/expenses | D20: -1266.3 | E20: -2190.9 | F20: -2663.92
B21: Extraordinary income | D21: -317.58 | E21: -864.3 | F21: -320.26
B23: EBT | D23: =D18+D21+D20 -> 15825.63733 | E23: =E18+E21+E20 -> 13508.936 | F23: =F18+F21+F20 -> 20146.03357
B25: Taxes | D25: -3805.776 | E25: -3050.192 | F25: -3814.88
B27: Net Income | D27: =D23+D25 -> 12019.86133 | E27: =E23+E25 -> 10458.744 | F27: =F23+F25 -> 16331.15357

Sheet BS source
B1: BS source
B3: USD in thousands | D3: 31Dec11 Act | E3: 31Dec12 Act | F3: 31Dec13 Act | H3: USD in thousands | J3: 31Dec11 Act | K3: 31Dec12 Act | L3: 31Dec13 Act
B4: Intangible assets | D4: 5961.6 | E4: 5840 | F4: 5650 | H4: Share Capital | J4: 6784.8 | K4: 6800 | L4: 7508
B5: PP&E | D5: 45106.4 | E5: 49072.4 | F5: 56109.2 | H5: Reserves | J5: 46224 | K5: 44414.4 | L5: 46513.2
B6: Financial assets | D6: 8824 | E6: 9831 | F6: 10323 | H6: Retained earnings | J6: 16393.7 | K6: 25993.7 | L6: 21516
H7: Profit/(loss) for the year | J7: 12019.86133 | K7: 10458.744 | L7: 16331.15357
B8: Fixed assets | D8: =D6+D5+D4 -> 59892 | E8: =E6+E5+E4 -> 64743.4 | F8: =F6+F5+F4 -> 72082.2 | H8: Total Equity | J8: =SUM(J4:J7) -> 81422.36133 | K8: =SUM(K4:K7) -> 87666.844 | L8: =SUM(L4:L7) -> 91868.35357
B10: Inventory | D10: 31167.2 | E10: 36396.8 | F10: 46212 | H10: Trade payable | J10: 15891.2 | K10: 26351.6 | L10: 36189.6
B11: Trade receivables | D11: 32883.6 | E11: 38556 | F11: 43581.6 | H11: Other liabilities | J11: 5315 | K11: 4334 | L11: 6473.046425
B12: Other assets | D12: 8841.6 | E12: 11359.2 | F12: 17602.8 | H12: Deferred taxes | J12: 478.8386667 | K12: 1217.956 | L12: 1760.4
H13: Provisions for retirement benefits | J13: 175.2 | K13: 248.4 | L13: 240
B14: Cash and equivalents | D14: 11791.2 | E14: 19408.8 | F14: 8173.6
B15: Non fixed assets | D15: =+D14+D12+D11+D10 -> 84683.6 | E15: =+E14+E12+E11+E10 -> 105720.8 | F15: =+F14+F12+F11+F10 -> 115570 | H15: Bank borrowings | J15: 37402.6 | K15: 45594.6 | L15: 50680.4
H16: Other Financial liabilities | J16: 3890.4 | K16: 5050.8 | L16: 440.4
H17: Total Liabilities | J17: =J16+J15+SUM(J10:J13) -> 63153.23867 | K17: =K16+K15+SUM(K10:K13) -> 82797.356 | L17: =L16+L15+SUM(L10:L13) -> 95783.84643
B19: Total Assets | D19: =D15+D8 -> 144575.6 | E19: =E15+E8 -> 170464.2 | F19: =F15+F8 -> 187652.2 | H19: Total Liabilities & Equity | J19: =J17+J8 -> 144575.6 | K19: =K17+K8 -> 170464.2 | L19: =L17+L8 -> 187652.2
J22: =J19-D19 -> 0 | K22: =K19-E19 -> 0 | L22: =L19-F19 -> 0
